[Event "Titled Tuesday Blitz August 02 Late 2022"]
[White "Ohanyan, Emin"]
[Black "Barp, Alberto"]
[WhiteFideId "13312022"]
[BlackFideId "872555"]
[WhiteElo "1927"]
[BlackElo "2229"]
[Result "0-1"]
[Round "04"]
[TimeControl "180+1"]
[Date "2022.08.02"]
[WhiteClock "0:00:45"]
[BlackClock "0:01:21"]

1. e4 {[%clk 0:02:56]}  e6 {[%clk 0:02:52]} 2. d4 {[%clk 0:02:54]}  d6 {[%clk 0:02:49]} 3. Bd3 {[%clk 0:02:51]}  Nf6 {[%clk 0:02:45]} 4. Nd2 {[%clk 0:02:51]}  Nc6 {[%clk 0:02:43]} 5. Ne2 {[%clk 0:02:49]}  Nb4 {[%clk 0:02:42]} 6. Bb5+ {[%clk 0:02:48]}  c6 {[%clk 0:02:42]} 7. Ba4 {[%clk 0:02:48]}  b5 {[%clk 0:02:40]} 8. Bb3 {[%clk 0:02:48]}  c5 {[%clk 0:02:38]} 9. c3 {[%clk 0:02:48]}  Nd3+ {[%clk 0:02:37]} 10. Kf1 {[%clk 0:02:47]}  Bb7 {[%clk 0:02:34]} 11. Bc2 {[%clk 0:02:39]}  Nxc1 {[%clk 0:02:32]} 12. Rxc1 {[%clk 0:02:40]}  Rc8 {[%clk 0:02:31]} 13. Bd3 {[%clk 0:02:32]}  a6 {[%clk 0:02:28]} 14. f3 {[%clk 0:02:26]}  Be7 {[%clk 0:02:21]} 15. g3 {[%clk 0:02:25]}  O-O {[%clk 0:02:20]} 16. Kg2 {[%clk 0:02:26]}  Qb6 {[%clk 0:02:16]} 17. Nf1 {[%clk 0:02:17]}  cxd4 {[%clk 0:02:10]} 18. cxd4 {[%clk 0:02:16]}  Rxc1 {[%clk 0:02:11]} 19. Qxc1 {[%clk 0:02:16]}  Rc8 {[%clk 0:02:12]} 20. Qd2 {[%clk 0:02:16]}  Nd7 {[%clk 0:02:01]} 21. Ne3 {[%clk 0:02:09]}  Bf6 {[%clk 0:02:00]} 22. Bb1 {[%clk 0:02:08]}  g6 {[%clk 0:02:00]} 23. h4 {[%clk 0:02:07]}  Bg7 {[%clk 0:02:00]} 24. h5 {[%clk 0:02:07]}  Nf6 {[%clk 0:01:56]} 25. hxg6 {[%clk 0:02:01]}  hxg6 {[%clk 0:01:57]} 26. g4 {[%clk 0:01:44]}  Qd8 {[%clk 0:01:56]} 27. Ng3 {[%clk 0:01:42]}  e5 {[%clk 0:01:48]} 28. d5 {[%clk 0:01:39]}  Nh7 {[%clk 0:01:47]} 29. Nc2 {[%clk 0:00:50]}  Qg5 {[%clk 0:01:45]} 30. Qxg5 {[%clk 0:00:48]}  Nxg5 {[%clk 0:01:46]} 31. Nb4 {[%clk 0:00:46]}  a5 {[%clk 0:01:42]} 32. Nd3 {[%clk 0:00:42]}  Bf6 {[%clk 0:01:42]} 33. Rc1 {[%clk 0:00:42]}  Rxc1 {[%clk 0:01:42]} 34. Nxc1 {[%clk 0:00:43]}  Bd8 {[%clk 0:01:42]} 35. Bd3 {[%clk 0:00:43]}  b4 {[%clk 0:01:41]} 36. Kf2 {[%clk 0:00:40]}  Nh3+ {[%clk 0:01:40]} 37. Ke3 {[%clk 0:00:37]}  Bg5+ {[%clk 0:01:40]} 38. Ke2 {[%clk 0:00:32]}  Bxc1 {[%clk 0:01:39]} 39. Kd1 {[%clk 0:00:31]}  Bxb2 {[%clk 0:01:38]} 40. Kc2 {[%clk 0:00:32]}  Bd4 {[%clk 0:01:37]} 41. Kb3 {[%clk 0:00:33]}  Nf2 {[%clk 0:01:29]} 42. Bc4 {[%clk 0:00:32]}  Nd1 {[%clk 0:01:27]} 43. Ka4 {[%clk 0:00:32]}  Nb2+ {[%clk 0:01:26]} 44. Kxa5 {[%clk 0:00:32]}  Nxc4+ {[%clk 0:01:26]} 45. Kxb4 {[%clk 0:00:33]}  Nd2 {[%clk 0:01:25]} 46. a4 {[%clk 0:00:33]}  Nxf3 {[%clk 0:01:25]} 47. a5 {[%clk 0:00:34]}  Ba6 {[%clk 0:01:25]} 48. Ne2 {[%clk 0:00:33]}  Bxe2 {[%clk 0:01:25]} 49. g5 {[%clk 0:00:34]}  Nd2 {[%clk 0:01:24]} 50. a6 {[%clk 0:00:35]}  Bxa6 {[%clk 0:01:23]} 51. Ka5 {[%clk 0:00:36]}  Bd3 {[%clk 0:01:23]} 52. Kb4 {[%clk 0:00:37]}  Bxe4 {[%clk 0:01:22]} 53. Ka4 {[%clk 0:00:38]}  Bxd5 {[%clk 0:01:22]} 54. Kb5 {[%clk 0:00:39]}  e4 {[%clk 0:01:22]} 55. Ka6 {[%clk 0:00:39]}  e3 {[%clk 0:01:22]} 56. Kb5 {[%clk 0:00:40]}  e2 {[%clk 0:01:22]} 57. Kb4 {[%clk 0:00:41]}  e1=Q {[%clk 0:01:22]} 58. Ka3 {[%clk 0:00:42]}  Qa1+ {[%clk 0:01:22]} 59. Kb4 {[%clk 0:00:43]}  Qc3+ {[%clk 0:01:22]} 60. Ka4 {[%clk 0:00:44]}  Qb3+ {[%clk 0:01:21]} 61. Ka5 {[%clk 0:00:44]}  Nc4+ {[%clk 0:01:20]} 62. Ka6 {[%clk 0:00:45]}  Qb6# {[%clk 0:01:21]} 0-1


[Site "https://www.chess.com"]

[Event "Titled Tuesday Blitz August 02 Late 2022"]
[White "Oparin, Grigoriy"]
[Black "Svane, Frederik"]
[WhiteFideId "24125890"]
[BlackFideId "12923044"]
[WhiteElo "2639"]
[BlackElo "2459"]
[Result "1-0"]
[Round "04"]
[TimeControl "180+1"]
[Date "2022.08.02"]
[WhiteClock "0:00:13"]
[BlackClock "0:00:08"]

1. e4 {[%clk 0:03:00]}  c5 {[%clk 0:03:00]} 2. Nf3 {[%clk 0:03:01]}  d6 {[%clk 0:03:01]} 3. d4 {[%clk 0:03:01]}  cxd4 {[%clk 0:03:01]} 4. Nxd4 {[%clk 0:03:02]}  Nf6 {[%clk 0:03:02]} 5. Nc3 {[%clk 0:03:03]}  a6 {[%clk 0:03:03]} 6. a4 {[%clk 0:03:03]}  e6 {[%clk 0:03:02]} 7. a5 {[%clk 0:02:59]}  Be7 {[%clk 0:03:02]} 8. Be3 {[%clk 0:02:58]}  O-O {[%clk 0:03:02]} 9. Be2 {[%clk 0:02:58]}  Bd7 {[%clk 0:03:02]} 10. O-O {[%clk 0:02:58]}  Nc6 {[%clk 0:03:03]} 11. Nb3 {[%clk 0:02:58]}  Rc8 {[%clk 0:02:56]} 12. Kh1 {[%clk 0:02:58]}  Qc7 {[%clk 0:02:57]} 13. f4 {[%clk 0:02:54]}  Qb8 {[%clk 0:02:52]} 14. Bf3 {[%clk 0:02:53]}  Bd8 {[%clk 0:02:51]} 15. Qd2 {[%clk 0:02:44]}  Bc7 {[%clk 0:02:44]} 16. Ne2 {[%clk 0:02:39]}  Rfd8 {[%clk 0:02:42]} 17. Ng3 {[%clk 0:02:37]}  Be8 {[%clk 0:02:41]} 18. c4 {[%clk 0:02:35]}  d5 {[%clk 0:02:34]} 19. cxd5 {[%clk 0:02:34]}  exd5 {[%clk 0:02:35]} 20. e5 {[%clk 0:02:33]}  Ne4 {[%clk 0:02:35]} 21. Qe1 {[%clk 0:02:14]}  Nxg3+ {[%clk 0:02:29]} 22. Qxg3 {[%clk 0:02:15]}  d4 {[%clk 0:02:24]} 23. Bd2 {[%clk 0:02:15]}  b6 {[%clk 0:02:17]} 24. Rac1 {[%clk 0:02:02]}  Nxa5 {[%clk 0:02:15]} 25. Bxa5 {[%clk 0:01:51]}  bxa5 {[%clk 0:02:15]} 26. Nc5 {[%clk 0:01:51]}  Bb6 {[%clk 0:02:08]} 27. Nd3 {[%clk 0:01:39]}  Bb5 {[%clk 0:02:08]} 28. Be4 {[%clk 0:01:39]}  g6 {[%clk 0:02:02]} 29. h4 {[%clk 0:01:36]}  Rxc1 {[%clk 0:02:02]} 30. Rxc1 {[%clk 0:01:36]}  Rc8 {[%clk 0:02:02]} 31. Re1 {[%clk 0:01:32]}  Bc6 {[%clk 0:01:47]} 32. e6 {[%clk 0:01:28]}  Bxe4 {[%clk 0:01:41]} 33. Rxe4 {[%clk 0:01:28]}  fxe6 {[%clk 0:01:39]} 34. Rxe6 {[%clk 0:01:27]}  Re8 {[%clk 0:01:38]} 35. Qg4 {[%clk 0:01:13]}  Qc8 {[%clk 0:01:22]} 36. f5 {[%clk 0:01:14]}  Rxe6 {[%clk 0:01:11]} 37. fxe6 {[%clk 0:01:14]}  Qe8 {[%clk 0:00:42]} 38. h5 {[%clk 0:01:06]}  Kg7 {[%clk 0:00:20]} 39. Ne5 {[%clk 0:00:57]}  Bc7 {[%clk 0:00:19]} 40. Nd7 {[%clk 0:00:38]}  Qe7 {[%clk 0:00:12]} 41. Qxd4+ {[%clk 0:00:38]}  Kh6 {[%clk 0:00:12]} 42. Qe3+ {[%clk 0:00:24]}  Kxh5 {[%clk 0:00:06]} 43. Qc5+ {[%clk 0:00:10]}  Qxc5 {[%clk 0:00:05]} 44. Nxc5 {[%clk 0:00:11]}  Bd6 {[%clk 0:00:06]} 45. Ne4 {[%clk 0:00:11]}  Be7 {[%clk 0:00:07]} 46. Nc3 {[%clk 0:00:11]}  Kg4 {[%clk 0:00:07]} 47. Nd5 {[%clk 0:00:12]}  Bc5 {[%clk 0:00:07]} 48. e7 {[%clk 0:00:12]}  Bxe7 {[%clk 0:00:07]} 49. Nxe7 {[%clk 0:00:13]}  Kf4 {[%clk 0:00:07]} 50. Nc6 {[%clk 0:00:13]}  Ke4 {[%clk 0:00:08]} 51. Nxa5 {[%clk 0:00:13]}  Kd4 {[%clk 0:00:08]} 52. Kh2 {[%clk 0:00:12]}  Kc5 {[%clk 0:00:09]} 53. Kg3 {[%clk 0:00:12]}  Kb4 {[%clk 0:00:10]} 54. Nb7 {[%clk 0:00:09]}  a5 {[%clk 0:00:05]} 55. Kf4 {[%clk 0:00:09]}  a4 {[%clk 0:00:05]} 56. Kg5 {[%clk 0:00:09]}  Kb3 {[%clk 0:00:03]} 57. Nc5+ {[%clk 0:00:09]}  Kxb2 {[%clk 0:00:04]} 58. Nxa4+ {[%clk 0:00:10]}  Kc2 {[%clk 0:00:04]} 59. g4 {[%clk 0:00:09]}  Kd3 {[%clk 0:00:05]} 60. Kh6 {[%clk 0:00:09]}  Ke4 {[%clk 0:00:05]} 61. g5 {[%clk 0:00:10]}  Kf4 {[%clk 0:00:06]} 62. Nc5 {[%clk 0:00:11]}  Kf5 {[%clk 0:00:06]} 63. Nd7 {[%clk 0:00:11]}  Kg4 {[%clk 0:00:07]} 64. Nf8 {[%clk 0:00:12]}  Kf5 {[%clk 0:00:08]} 65. Nxh7 {[%clk 0:00:13]} 1-0


[Site "https://www.chess.com"]

[Event "Titled Tuesday Blitz August 02 Late 2022"]
[White "Shapiro, David"]
[Black "Swiercz, Dariusz"]
[WhiteFideId "24133523"]
[BlackFideId "1126881"]
[WhiteElo "2300"]
[BlackElo "2627"]
[Result "0-1"]
[Round "04"]
[TimeControl "180+1"]
[Date "2022.08.02"]
[WhiteClock "0:00:43"]
[BlackClock "0:01:47"]

1. e4 {[%clk 0:01:30]}  Nc6 {[%clk 0:02:56]} 2. d4 {[%clk 0:01:29]}  e5 {[%clk 0:02:55]} 3. d5 {[%clk 0:01:28]}  Nce7 {[%clk 0:02:54]} 4. c4 {[%clk 0:01:29]}  Ng6 {[%clk 0:02:55]} 5. Nc3 {[%clk 0:01:30]}  Bb4 {[%clk 0:02:54]} 6. Bd2 {[%clk 0:01:30]}  Nf6 {[%clk 0:02:51]} 7. g3 {[%clk 0:01:30]}  Bxc3 {[%clk 0:02:50]} 8. Bxc3 {[%clk 0:01:29]}  Nxe4 {[%clk 0:02:50]} 9. Qc2 {[%clk 0:01:18]}  Nxc3 {[%clk 0:02:50]} 10. Qxc3 {[%clk 0:01:19]}  d6 {[%clk 0:02:49]} 11. h4 {[%clk 0:01:15]}  h6 {[%clk 0:02:43]} 12. h5 {[%clk 0:01:14]}  Ne7 {[%clk 0:02:43]} 13. f4 {[%clk 0:01:11]}  f6 {[%clk 0:02:38]} 14. fxe5 {[%clk 0:01:11]}  fxe5 {[%clk 0:02:37]} 15. Bd3 {[%clk 0:01:08]}  O-O {[%clk 0:02:36]} 16. O-O-O {[%clk 0:01:07]}  Bf5 {[%clk 0:02:33]} 17. Ne2 {[%clk 0:01:05]}  Qd7 {[%clk 0:02:31]} 18. Rhf1 {[%clk 0:00:53]}  Bxd3 {[%clk 0:02:27]} 19. Qxd3 {[%clk 0:00:54]}  Qg4 {[%clk 0:02:26]} 20. Nc3 {[%clk 0:00:51]}  Nf5 {[%clk 0:02:18]} 21. Nb5 {[%clk 0:00:48]}  Rf7 {[%clk 0:01:59]} 22. Nxc7 {[%clk 0:00:47]}  Rxc7 {[%clk 0:01:53]} 23. Rxf5 {[%clk 0:00:46]}  Rxc4+ {[%clk 0:01:47]} 24. Kb1 {[%clk 0:00:43]}  Rd4 {[%clk 0:01:47]} 0-1


[Site "https://www.chess.com"]

[Event "Titled Tuesday Blitz August 02 Late 2022"]
[White "Souleidis, Georgios"]
[Black "Clarke, Brandon G I"]
[WhiteFideId "4206827"]
[BlackFideId "400319"]
[WhiteElo "2401"]
[BlackElo "2414"]
[Result "0-1"]
[Round "04"]
[TimeControl "180+1"]
[Date "2022.08.02"]
[WhiteClock "0:01:47"]
[BlackClock "0:01:34"]

1. e4 {[%clk 0:02:57]}  c5 {[%clk 0:02:30]} 2. Be2 {[%clk 0:02:56]}  Nc6 {[%clk 0:02:30]} 3. d3 {[%clk 0:02:56]}  g6 {[%clk 0:02:30]} 4. f4 {[%clk 0:02:57]}  Bg7 {[%clk 0:02:31]} 5. Nf3 {[%clk 0:02:58]}  d6 {[%clk 0:02:31]} 6. O-O {[%clk 0:02:58]}  e6 {[%clk 0:02:32]} 7. c3 {[%clk 0:02:59]}  Nge7 {[%clk 0:02:32]} 8. Be3 {[%clk 0:02:59]}  O-O {[%clk 0:02:31]} 9. d4 {[%clk 0:03:00]}  b6 {[%clk 0:02:28]} 10. a3 {[%clk 0:03:00]}  Bb7 {[%clk 0:02:28]} 11. b4 {[%clk 0:03:00]}  Qc7 {[%clk 0:02:27]} 12. Nbd2 {[%clk 0:02:55]}  Rad8 {[%clk 0:02:27]} 13. Rc1 {[%clk 0:02:55]}  h6 {[%clk 0:02:26]} 14. Bd3 {[%clk 0:02:52]}  f5 {[%clk 0:02:26]} 15. e5 {[%clk 0:02:43]}  dxe5 {[%clk 0:02:24]} 16. fxe5 {[%clk 0:02:24]}  Nxe5 {[%clk 0:02:12]} 17. Nxe5 {[%clk 0:02:23]}  Bxe5 {[%clk 0:02:13]} 18. Bxh6 {[%clk 0:02:17]}  Bxh2+ {[%clk 0:02:12]} 19. Kh1 {[%clk 0:02:17]}  Rf7 {[%clk 0:02:12]} 20. Qe2 {[%clk 0:01:56]}  Bd5 {[%clk 0:01:45]} 21. Nf3 {[%clk 0:01:46]}  Rh7 {[%clk 0:01:40]} 22. Nxh2 {[%clk 0:01:46]}  Rxh6 {[%clk 0:01:40]} 23. Qe5 {[%clk 0:01:46]}  Qxe5 {[%clk 0:01:38]} 24. dxe5 {[%clk 0:01:47]}  Bxg2+ {[%clk 0:01:38]} 25. Kxg2 {[%clk 0:01:48]}  Rxd3 {[%clk 0:01:38]} 26. bxc5 {[%clk 0:01:49]}  Rd2+ {[%clk 0:01:38]} 27. Rf2 {[%clk 0:01:44]}  Rxf2+ {[%clk 0:01:37]} 28. Kxf2 {[%clk 0:01:45]}  Rxh2+ {[%clk 0:01:37]} 29. Kg3 {[%clk 0:01:46]}  Ra2 {[%clk 0:01:34]} 30. cxb6 {[%clk 0:01:47]} 0-1


[Site "https://www.chess.com"]

[Event "Titled Tuesday Blitz August 02 Late 2022"]
[White "Vovk, Orest"]
[Black "Harvey, Marcus R"]
[WhiteFideId "14113490"]
[BlackFideId "400092"]
[WhiteElo "2203"]
[BlackElo "2485"]
[Result "0-1"]
[Round "04"]
[TimeControl "180+1"]
[Date "2022.08.02"]
[WhiteClock "0:00:06"]
[BlackClock "0:00:23"]

1. h3 {[%clk 0:02:53]}  b6 {[%clk 0:02:57]} 2. e4 {[%clk 0:02:48]}  Bb7 {[%clk 0:02:57]} 3. Nc3 {[%clk 0:02:47]}  Nf6 {[%clk 0:02:42]} 4. e5 {[%clk 0:02:41]}  Nd5 {[%clk 0:02:42]} 5. Nxd5 {[%clk 0:02:41]}  Bxd5 {[%clk 0:02:43]} 6. c4 {[%clk 0:02:40]}  Bb7 {[%clk 0:02:43]} 7. d4 {[%clk 0:02:36]}  e6 {[%clk 0:02:43]} 8. a3 {[%clk 0:02:29]}  d6 {[%clk 0:02:39]} 9. Be3 {[%clk 0:02:26]}  dxe5 {[%clk 0:02:31]} 10. dxe5 {[%clk 0:02:26]}  Nc6 {[%clk 0:02:29]} 11. Qxd8+ {[%clk 0:02:14]}  Rxd8 {[%clk 0:02:28]} 12. Nf3 {[%clk 0:02:14]}  h6 {[%clk 0:02:00]} 13. Be2 {[%clk 0:02:11]}  g6 {[%clk 0:01:59]} 14. Bf4 {[%clk 0:01:49]}  Bg7 {[%clk 0:01:55]} 15. O-O {[%clk 0:01:44]}  O-O {[%clk 0:01:50]} 16. Rfd1 {[%clk 0:01:39]}  g5 {[%clk 0:01:48]} 17. Bg3 {[%clk 0:01:37]}  Ne7 {[%clk 0:01:41]} 18. Nd4 {[%clk 0:00:57]}  Ng6 {[%clk 0:01:40]} 19. Bf3 {[%clk 0:00:57]}  Bxf3 {[%clk 0:01:15]} 20. Nxf3 {[%clk 0:00:58]}  Kh7 {[%clk 0:00:58]} 21. Kf1 {[%clk 0:00:55]}  Ne7 {[%clk 0:00:51]} 22. Bh2 {[%clk 0:00:44]}  Nc6 {[%clk 0:00:46]} 23. b4 {[%clk 0:00:36]}  Kg6 {[%clk 0:00:46]} 24. g4 {[%clk 0:00:25]}  a6 {[%clk 0:00:41]} 25. b5 {[%clk 0:00:21]}  Na5 {[%clk 0:00:37]} 26. bxa6 {[%clk 0:00:17]}  Nxc4 {[%clk 0:00:37]} 27. Rxd8 {[%clk 0:00:17]}  Rxd8 {[%clk 0:00:37]} 28. Rc1 {[%clk 0:00:17]}  Nxa3 {[%clk 0:00:33]} 29. Rxc7 {[%clk 0:00:16]}  Ra8 {[%clk 0:00:33]} 30. a7 {[%clk 0:00:15]}  Nb5 {[%clk 0:00:33]} 31. Rb7 {[%clk 0:00:15]}  Rxa7 {[%clk 0:00:33]} 32. Rxb6 {[%clk 0:00:16]}  Nc3 {[%clk 0:00:31]} 33. Kg2 {[%clk 0:00:13]}  Nd5 {[%clk 0:00:30]} 34. Rd6 {[%clk 0:00:11]}  Bf8 {[%clk 0:00:29]} 35. Rc6 {[%clk 0:00:10]}  Ra4 {[%clk 0:00:23]} 36. Rc8 {[%clk 0:00:09]}  Be7 {[%clk 0:00:23]} 37. Rg8+ {[%clk 0:00:08]}  Kh7 {[%clk 0:00:23]} 38. Rc8 {[%clk 0:00:08]}  Kg7 {[%clk 0:00:22]} 39. Bg3 {[%clk 0:00:07]}  Ba3 {[%clk 0:00:21]} 40. h4 {[%clk 0:00:05]}  Rxg4 {[%clk 0:00:20]} 41. hxg5 {[%clk 0:00:05]}  h5 {[%clk 0:00:18]} 42. Kh3 {[%clk 0:00:04]}  Be7 {[%clk 0:00:17]} 43. Re8 {[%clk 0:00:02]}  Bxg5 {[%clk 0:00:16]} 44. Nxg5 {[%clk 0:00:03]}  Rxg5 {[%clk 0:00:17]} 45. Kh4 {[%clk 0:00:03]}  Rf5 {[%clk 0:00:17]} 46. Kh3 {[%clk 0:00:03]}  Nf4+ {[%clk 0:00:15]} 47. Kh2 {[%clk 0:00:02]}  Ng6 {[%clk 0:00:15]} 48. Ra8 {[%clk 0:00:01]}  h4 {[%clk 0:00:15]} 49. Ra5 {[%clk 0:00:02]}  hxg3+ {[%clk 0:00:15]} 50. Kxg3 {[%clk 0:00:02]}  Rxe5 {[%clk 0:00:15]} 51. Ra4 {[%clk 0:00:03]}  Rg5+ {[%clk 0:00:15]} 52. Kf3 {[%clk 0:00:03]}  Rf5+ {[%clk 0:00:16]} 53. Ke2 {[%clk 0:00:04]}  Kf6 {[%clk 0:00:16]} 54. Kf1 {[%clk 0:00:04]}  Nf4 {[%clk 0:00:17]} 55. Ra3 {[%clk 0:00:04]}  e5 {[%clk 0:00:16]} 56. Ra6+ {[%clk 0:00:04]}  Kg7 {[%clk 0:00:17]} 57. Ra7 {[%clk 0:00:04]}  Rf6 {[%clk 0:00:17]} 58. Ra5 {[%clk 0:00:03]}  Rc6 {[%clk 0:00:17]} 59. Rxe5 {[%clk 0:00:02]}  Rc1+ {[%clk 0:00:17]} 60. Re1 {[%clk 0:00:03]}  Rxe1+ {[%clk 0:00:17]} 61. Kxe1 {[%clk 0:00:04]}  Kf6 {[%clk 0:00:17]} 62. Kd2 {[%clk 0:00:04]}  Kf5 {[%clk 0:00:18]} 63. Ke3 {[%clk 0:00:05]}  f6 {[%clk 0:00:18]} 64. Kf3 {[%clk 0:00:06]}  Ne6 {[%clk 0:00:19]} 65. Ke3 {[%clk 0:00:06]}  Nf8 {[%clk 0:00:19]} 66. Kf3 {[%clk 0:00:06]}  Ng6 {[%clk 0:00:20]} 67. Kg3 {[%clk 0:00:06]}  Ne7 {[%clk 0:00:21]} 68. Kf3 {[%clk 0:00:07]}  Nc6 {[%clk 0:00:22]} 69. Ke3 {[%clk 0:00:07]}  Ne5 {[%clk 0:00:23]} 70. f4 {[%clk 0:00:06]}  Ng6 {[%clk 0:00:23]} 0-1


[Site "https://www.chess.com"]

[Event "Titled Tuesday Blitz August 02 Late 2022"]
[White "Wachinger, Nikolas"]
[Black "Pakleza, Zbigniew"]
[WhiteFideId "12962791"]
[BlackFideId "1119290"]
[WhiteElo "2253"]
[BlackElo "2467"]
[Result "1-0"]
[Round "04"]
[TimeControl "180+1"]
[Date "2022.08.02"]
[WhiteClock "0:00:03"]
[BlackClock "0:00:04"]

1. d4 {[%clk 0:03:00]}  d6 {[%clk 0:02:59]} 2. e4 {[%clk 0:02:58]}  Nf6 {[%clk 0:02:59]} 3. Nc3 {[%clk 0:02:58]}  c6 {[%clk 0:03:00]} 4. a4 {[%clk 0:02:50]}  Nbd7 {[%clk 0:02:59]} 5. Nf3 {[%clk 0:02:49]}  e5 {[%clk 0:03:00]} 6. Bc4 {[%clk 0:02:48]}  Be7 {[%clk 0:03:00]} 7. O-O {[%clk 0:02:37]}  O-O {[%clk 0:03:00]} 8. h3 {[%clk 0:02:36]}  a5 {[%clk 0:03:00]} 9. Re1 {[%clk 0:02:36]}  h6 {[%clk 0:02:50]} 10. Ba2 {[%clk 0:02:26]}  Qc7 {[%clk 0:02:43]} 11. Nh4 {[%clk 0:02:14]}  exd4 {[%clk 0:02:10]} 12. Qxd4 {[%clk 0:02:15]}  Re8 {[%clk 0:02:08]} 13. Ng6 {[%clk 0:01:43]}  Nc5 {[%clk 0:01:26]} 14. Nxe7+ {[%clk 0:01:37]}  Qxe7 {[%clk 0:01:27]} 15. Bf4 {[%clk 0:01:26]}  Rd8 {[%clk 0:01:00]} 16. Rad1 {[%clk 0:01:23]}  Ne8 {[%clk 0:00:57]} 17. Qe3 {[%clk 0:01:12]}  Be6 {[%clk 0:00:53]} 18. Bxe6 {[%clk 0:01:02]}  Nxe6 {[%clk 0:00:49]} 19. Bg3 {[%clk 0:01:03]}  Rd7 {[%clk 0:00:34]} 20. Nd5 {[%clk 0:00:57]}  cxd5 {[%clk 0:00:29]} 21. exd5 {[%clk 0:00:58]}  N8c7 {[%clk 0:00:29]} 22. dxe6 {[%clk 0:00:56]}  Nxe6 {[%clk 0:00:27]} 23. Rd5 {[%clk 0:00:56]}  Qf6 {[%clk 0:00:20]} 24. b3 {[%clk 0:00:42]}  Rc8 {[%clk 0:00:20]} 25. c4 {[%clk 0:00:40]}  Nc5 {[%clk 0:00:19]} 26. Red1 {[%clk 0:00:40]}  Re7 {[%clk 0:00:16]} 27. Qf3 {[%clk 0:00:27]}  Qxf3 {[%clk 0:00:16]} 28. gxf3 {[%clk 0:00:28]}  Nxb3 {[%clk 0:00:16]} 29. Bxd6 {[%clk 0:00:27]}  Re2 {[%clk 0:00:11]} 30. Rb5 {[%clk 0:00:25]}  Nd2 {[%clk 0:00:10]} 31. c5 {[%clk 0:00:15]}  Nxf3+ {[%clk 0:00:07]} 32. Kg2 {[%clk 0:00:16]}  Ng5 {[%clk 0:00:07]} 33. Rxb7 {[%clk 0:00:14]}  Ra2 {[%clk 0:00:07]} 34. Be7 {[%clk 0:00:12]}  Ne4 {[%clk 0:00:07]} 35. Bh4 {[%clk 0:00:10]}  Rxa4 {[%clk 0:00:05]} 36. Rdd7 {[%clk 0:00:09]}  Ng5 {[%clk 0:00:03]} 37. Bxg5 {[%clk 0:00:08]}  hxg5 {[%clk 0:00:03]} 38. Rxf7 {[%clk 0:00:09]}  Rxc5 {[%clk 0:00:04]} 39. Rxg7+ {[%clk 0:00:09]}  Kf8 {[%clk 0:00:05]} 40. Rbf7+ {[%clk 0:00:09]}  Ke8 {[%clk 0:00:05]} 41. Ra7 {[%clk 0:00:09]}  Kf8 {[%clk 0:00:06]} 42. Rgf7+ {[%clk 0:00:09]}  Kg8 {[%clk 0:00:06]} 43. Rg7+ {[%clk 0:00:09]}  Kf8 {[%clk 0:00:06]} 44. Rh7 {[%clk 0:00:10]}  Kg8 {[%clk 0:00:07]} 45. Rhb7 {[%clk 0:00:09]}  Rc8 {[%clk 0:00:06]} 46. Rb5 {[%clk 0:00:09]}  g4 {[%clk 0:00:05]} 47. Rg5+ {[%clk 0:00:08]}  Kh8 {[%clk 0:00:06]} 48. hxg4 {[%clk 0:00:08]}  Ra2 {[%clk 0:00:05]} 49. Kg3 {[%clk 0:00:08]}  Rc3+ {[%clk 0:00:04]} 50. f3 {[%clk 0:00:08]}  a4 {[%clk 0:00:04]} 51. Rb5 {[%clk 0:00:06]}  Rc8 {[%clk 0:00:04]} 52. Rba5 {[%clk 0:00:05]}  Rc4 {[%clk 0:00:03]} 53. Rb5 {[%clk 0:00:05]}  Rc8 {[%clk 0:00:03]} 54. Rh5+ {[%clk 0:00:04]}  Kg8 {[%clk 0:00:03]} 55. Rg5+ {[%clk 0:00:05]}  Kh8 {[%clk 0:00:04]} 56. Rb7 {[%clk 0:00:02]}  a3 {[%clk 0:00:03]} 57. Ra5 {[%clk 0:00:03]}  Ra1 {[%clk 0:00:03]} 58. Raa7 {[%clk 0:00:03]}  a2 {[%clk 0:00:02]} 59. Kf4 {[%clk 0:00:03]}  Rf8+ {[%clk 0:00:02]} 60. Kg5 {[%clk 0:00:04]}  Rc8 {[%clk 0:00:03]} 61. Rh7+ {[%clk 0:00:04]}  Kg8 {[%clk 0:00:03]} 62. Rhg7+ {[%clk 0:00:03]}  Kh8 {[%clk 0:00:04]} 63. Rh7+ {[%clk 0:00:04]}  Kg8 {[%clk 0:00:04]} 64. Rhd7 {[%clk 0:00:04]}  Rb8 {[%clk 0:00:03]} 65. f4 {[%clk 0:00:04]}  Rd1 {[%clk 0:00:02]} 66. Rxd1 {[%clk 0:00:03]}  a1=Q {[%clk 0:00:03]} 67. Rdxa1 {[%clk 0:00:02]}  Rb5+ {[%clk 0:00:04]} 68. f5 {[%clk 0:00:02]}  Rb8 {[%clk 0:00:05]} 69. Ra8 {[%clk 0:00:03]}  Kg7 {[%clk 0:00:04]} 70. Rxb8 {[%clk 0:00:03]} 1-0


[Site "https://www.chess.com"]

[Event "Titled Tuesday Blitz August 02 Late 2022"]
[White "Yanchenko, Roman"]
[Black "Wieczorek, Oskar"]
[WhiteFideId "4137329"]
[BlackFideId "1133950"]
[WhiteElo "2514"]
[BlackElo "2330"]
[Result "1-0"]
[Round "04"]
[TimeControl "180+1"]
[Date "2022.08.02"]
[WhiteClock "0:00:20"]
[BlackClock "0:00:02"]

1. d4 {[%clk 0:02:58]}  Nf6 {[%clk 0:02:59]} 2. Nf3 {[%clk 0:02:58]}  g6 {[%clk 0:02:59]} 3. c4 {[%clk 0:02:58]}  c5 {[%clk 0:02:59]} 4. Nc3 {[%clk 0:02:57]}  cxd4 {[%clk 0:03:00]} 5. Nxd4 {[%clk 0:02:58]}  Nc6 {[%clk 0:03:01]} 6. g3 {[%clk 0:02:58]}  d6 {[%clk 0:03:01]} 7. Bg2 {[%clk 0:02:58]}  Bd7 {[%clk 0:03:01]} 8. O-O {[%clk 0:02:58]}  Bg7 {[%clk 0:03:02]} 9. e3 {[%clk 0:02:58]}  h5 {[%clk 0:03:02]} 10. h4 {[%clk 0:02:57]}  Ng4 {[%clk 0:02:59]} 11. b3 {[%clk 0:02:56]}  O-O {[%clk 0:02:56]} 12. Bb2 {[%clk 0:02:56]}  Nxd4 {[%clk 0:02:55]} 13. exd4 {[%clk 0:02:57]}  Rb8 {[%clk 0:02:56]} 14. Nd5 {[%clk 0:02:55]}  e6 {[%clk 0:02:52]} 15. Nf4 {[%clk 0:02:55]}  b5 {[%clk 0:02:46]} 16. Qd2 {[%clk 0:02:43]}  bxc4 {[%clk 0:02:42]} 17. bxc4 {[%clk 0:02:44]}  Qb6 {[%clk 0:02:13]} 18. Rab1 {[%clk 0:02:44]}  Rfc8 {[%clk 0:02:12]} 19. c5 {[%clk 0:02:41]}  Qa6 {[%clk 0:01:59]} 20. Bc3 {[%clk 0:02:20]}  Bb5 {[%clk 0:01:42]} 21. Rfc1 {[%clk 0:02:14]}  dxc5 {[%clk 0:01:15]} 22. dxc5 {[%clk 0:02:14]}  Bxc3 {[%clk 0:01:16]} 23. Rxc3 {[%clk 0:02:01]}  Bc6 {[%clk 0:01:11]} 24. Re1 {[%clk 0:01:16]}  Rd8 {[%clk 0:01:05]} 25. Qc2 {[%clk 0:01:12]}  Bxg2 {[%clk 0:00:33]} 26. Kxg2 {[%clk 0:01:12]}  Qc6+ {[%clk 0:00:33]} 27. Kg1 {[%clk 0:01:12]}  e5 {[%clk 0:00:34]} 28. Ng2 {[%clk 0:01:07]}  e4 {[%clk 0:00:24]} 29. Qxe4 {[%clk 0:01:03]}  Qxe4 {[%clk 0:00:21]} 30. Rxe4 {[%clk 0:01:04]}  Rd1+ {[%clk 0:00:21]} 31. Re1 {[%clk 0:00:56]}  Rbb1 {[%clk 0:00:20]} 32. Kf1 {[%clk 0:00:56]}  Rxe1+ {[%clk 0:00:10]} 33. Nxe1 {[%clk 0:00:57]}  Nf6 {[%clk 0:00:09]} 34. c6 {[%clk 0:00:55]}  Rb8 {[%clk 0:00:10]} 35. Nd3 {[%clk 0:00:49]}  Rc8 {[%clk 0:00:08]} 36. Ne5 {[%clk 0:00:48]}  Kf8 {[%clk 0:00:05]} 37. Rb3 {[%clk 0:00:39]}  Ng4 {[%clk 0:00:05]} 38. Nxg4 {[%clk 0:00:20]}  hxg4 {[%clk 0:00:06]} 39. Rc3 {[%clk 0:00:20]}  Ke7 {[%clk 0:00:06]} 40. Ke2 {[%clk 0:00:20]}  Kd6 {[%clk 0:00:06]} 41. Ke3 {[%clk 0:00:20]}  Kc7 {[%clk 0:00:02]} 42. Kf4 {[%clk 0:00:20]} 1-0


[Site "https://www.chess.com"]